bitfinex-derivatives/quotes_ETHF0:USTF0_20241004
["timestamp","ask_amount","ask_price","bid_price","bid_amount"]
[1728059082605,0.41036,2437.2,2437.1,3.94]
[1728059082804,1.02584,2437.4,2436.8,2.0951]
[1728059083007,5.25923,2437.7,2436.7,7.1478]
[1728059083008,3.2078,2437.7,2436.7,7.1478]
[1728059083307,0.41043,2436.8,2436.7,7.1478]
[1728059083604,3.2078,2437.4,2436.7,7.1478]
[1728059083810,1.02587,2437.3,2436.7,7.1478]
[1728059084009,0.41039,2437.1,2436.9,0.41041]
[1728059084207,1.02587,2437.3,2436.7,7.1478]
[1728059084410,3.2078,2437.4,2436.7,7.1478]
[1728059084411,1.02595,2437.2,2436.7,7.1478]
[1728059084613,3.2078,2437.4,2436.7,7.1478]
[1728059084614,3.2078,2437.4,2437.0,3.94]
[1728059084810,0.41036,2437.3,2437.1,0.41038]
[1728059085112,2.0497,2437.5,2437.0,3.94]
[1728059085113,0.41038,2437.1,2437.0,3.94]
[1728059085514,0.41042,2436.9,2436.7,7.55824]
[1728059085715,1.02596,2437.1,2436.7,7.55824]
[1728059085716,1.02596,2437.1,2436.7,7.1478]
[1728059085902,0.41043,2436.8,2436.7,7.1478]
[1728059086309,0.41043,2436.8,2436.7,11.2518]
[1728059086502,0.41043,2436.8,2436.7,7.1478]
[1728059086707,0.41043,2436.8,2436.7,11.2518]
[1728059086912,0.41043,2436.8,2436.7,3.94]
[1728059087212,0.41042,2436.9,2436.8,0.41043]
[1728059087405,1.02599,2437.1,2436.8,0.41043]
[1728059087406,0.41041,2437.0,2436.8,0.41043]
[1728059087605,3.2078,2437.2,2436.7,3.94]
[1728059087812,2.66417603,2437.6,2437.1,3.94]
[1728059088007,3.68993603,2437.6,2437.2,0.41035]
[1728059088224,0.41036,2437.3,2437.2,0.41036]
[1728059088409,0.41036,2437.3,2437.1,4.35037]
[1728059088606,1.0464,2437.8,2437.1,8.0432]
[1728059088809,0.41036,2437.2,2437.1,3.94]
[1728059090219,0.41041,2436.9,2436.8,3.94]
[1728059091708,0.41041,2436.9,2436.2,0.14392205]
[1728059091709,0.41052,2436.3,2436.2,3.94]
[1728059093515,0.41056,2436.1,2435.9,7.55838]
[1728059093714,0.41052,2436.3,2435.9,3.94]
[1728059093918,2.02913,2436.5,2435.9,3.94]
[1728059094117,0.41057,2436.0,2435.9,3.94]
[1728059094321,0.41055,2436.1,2435.9,4.35058]
[1728059094622,0.41055,2436.2,2436.0,0.41056]
[1728059094815,0.41053,2436.2,2435.9,7.55837]
[1728059095017,0.41053,2436.2,2435.9,7.1478]
[1728059095218,0.41054,2436.2,2436.0,0.41056]
[1728059095517,0.41055,2436.1,2435.9,7.55837]
[1728059095727,0.41051,2436.4,2436.2,0.41053]
[1728059095916,1.0029,2436.5,2436.1,0.41054]
[1728059096127,1.0029,2436.5,2435.9,7.1478]
[1728059096619,0.41053,2436.3,2436.0,0.41055]
[1728059096819,1.0029,2436.5,2435.9,7.1478]
[1728059097117,1.02631,2436.3,2435.9,7.1478]
[1728059097322,0.41056,2436.1,2435.9,7.55838]
[1728059097614,0.41056,2436.1,2435.9,7.1478]
[1728059098019,0.41054,2436.2,2436.0,0.41057]
[1728059098225,0.41053,2436.3,2436.0,0.41057]
[1728059098423,0.41055,2436.1,2435.9,7.1478]
[1728059098720,1.0263,2436.3,2435.9,7.55838]
[1728059098919,0.41054,2436.2,2436.0,0.41056]
[1728059099321,0.41052,2436.3,2436.1,0.41054]
[1728059099521,0.41051,2436.4,2435.9,7.1478]
[1728059099824,0.41051,2436.4,2436.1,0.41054]
[1728059100026,1.0029,2436.5,2435.9,7.1478]
[1728059100323,1.0029,2436.5,2436.2,0.41052]
[1728059100523,0.41054,2436.2,2435.9,4.35057]
[1728059100719,0.41054,2436.2,2435.9,7.55837]
[1728059100920,0.41055,2436.1,2435.9,7.55837]
[1728059101219,0.41057,2436.0,2435.9,3.2078]
[1728059101617,1.0029,2436.5,2435.9,3.2078]
[1728059101818,0.41057,2436.0,2435.9,3.2078]
[1728059102423,0.41053,2436.3,2435.9,3.2078]
[1728059102628,2.02912,2436.5,2435.9,3.2078]
[1728059102629,1.0029,2436.5,2435.9,3.2078]
[1728059102825,1.0029,2436.5,2435.9,3.61838]
[1728059102826,0.41056,2436.1,2435.9,3.61838]
[1728059103036,0.41055,2436.1,2435.9,3.61838]
[1728059103239,0.41055,2436.1,2435.9,3.2078]
[1728059103423,0.41057,2436.0,2435.9,3.2078]
[1728059103623,0.41056,2436.1,2435.9,3.2078]
[1728059103823,0.41057,2436.0,2435.9,3.2078]
[1728059104227,1.0029,2436.5,2435.5,3.2078]
[1728059104228,3.2078,2436.3,2435.5,3.2078]
[1728059104426,1.02641,2436.1,2435.6,0.41063]
[1728059104623,4.23422,2436.0,2435.5,0.41064]
[1728059104927,0.41061,2435.8,2435.4,1.0434]
[1728059105332,0.41059,2435.9,2435.6,0.41062]
[1728059105522,0.41059,2435.9,2435.7,0.41061]
[1728059105831,3.2078,2436.0,2435.4,1.0434]
[1728059105832,0.4106,2435.8,2435.6,0.41063]
[1728059106032,3.2078,2436.0,2435.4,1.0434]
[1728059106232,0.41059,2435.9,2435.4,2.07007]
[1728059106527,3.2078,2436.0,2435.4,1.0434]
[1728059106731,3.2078,2436.0,2435.6,0.41063]
[1728059106732,0.4106,2435.8,2435.6,0.41063]
[1728059107330,1.02646,2435.9,2435.4,1.45406]
[1728059107536,0.41064,2435.6,2435.3,8.1903]
[1728059107725,0.41064,2435.6,2435.3,8.60098]
[1728059107924,0.41062,2435.7,2435.4,0.41065]
[1728059108132,1.02651,2435.8,2435.4,0.41065]
[1728059108329,0.41064,2435.6,2435.3,8.60097]
[1728059108636,0.41064,2435.6,2435.3,3.2078]
[1728059108637,0.41067,2435.4,2435.3,3.2078]
[1728059109027,0.41067,2435.4,2434.8,0.41075]
[1728059109028,0.41072,2435.1,2434.8,0.41075]
[1728059109229,2.01302,2435.3,2434.5,1.0685]
[1728059109433,1.02682,2435.1,2434.4,0.9997]
[1728059109728,4.1941,2435.3,2434.3,3.2078]
[1728059109929,4.1941,2435.3,2434.0,0.14698992]
[1728059109930,3.2078,2434.9,2434.0,3.94]
[1728059110133,0.41086,2434.3,2433.7,7.1478]
[1728059110330,1.02697,2434.7,2434.0,3.2078]
[1728059110331,0.4109,2434.1,2434.0,3.2078]
[1728059110638,0.41082,2434.5,2434.1,0.41089]
[1728059110929,4.1941,2434.6,2434.0,3.2078]
[1728059111129,0.41087,2434.3,2433.7,7.1478]
[1728059111334,0.41087,2434.3,2433.9,0.41091]
[1728059111541,0.41083,2434.5,2434.1,0.41089]
[1728059111828,0.41085,2434.4,2434.0,0.41089]
[1728059112028,4.1941,2434.6,2434.0,0.41089]
[1728059112220,4.1941,2434.6,2434.0,7.1478]
[1728059112421,0.41074,2435.0,2434.6,0.4108]
[1728059112629,1.0753,2435.1,2434.9,3.2078]
[1728059112826,0.41063,2435.6,2435.0,0.41073]
[1728059113029,0.41066,2435.5,2435.0,0.41073]
[1728059113222,1.0753,2435.6,2435.2,0.41069]
[1728059113431,1.48595,2435.6,2435.1,0.41071]
[1728059113632,1.0753,2435.6,2435.2,0.41069]
[1728059113828,1.0753,2435.6,2435.0,3.2078]
[1728059114026,1.48594,2435.6,2435.0,3.2078]
[1728059114226,1.48594,2435.6,2435.2,0.4107]
[1728059114227,1.0753,2435.6,2435.2,0.4107]
[1728059114423,1.48593,2435.6,2435.0,3.2078]
[1728059114730,1.0753,2435.6,2435.3,0.41068]
[1728059114935,1.48594,2435.6,2435.1,0.4107]
[1728059115134,1.0753,2435.6,2435.3,0.41067]
[1728059115334,1.0753,2435.6,2435.2,3.94]
[1728059115638,3.2078,2435.7,2435.4,0.41066]
[1728059115838,1.0145,2435.8,2435.4,0.41066]
[1728059116041,0.41064,2435.6,2435.3,3.2078]
[1728059116230,0.41066,2435.5,2435.2,3.94]
[1728059117140,1.02655,2435.7,2435.2,4.3507]
[1728059117141,0.41064,2435.6,2435.2,4.3507]
[1728059117437,1.0145,2435.8,2435.2,3.94]
[1728059117630,0.41064,2435.6,2435.2,4.35069]
[1728059118132,1.0145,2435.8,2435.3,0.41068]
[1728059118327,1.0145,2435.8,2435.2,3.94]
[1728059118328,0.41065,2435.6,2435.2,4.35069]
[1728059118534,1.02655,2435.7,2435.2,3.94]
[1728059118729,1.02655,2435.7,2434.9,7.1478]
[1728059118931,0.41069,2435.3,2434.9,7.55854]
[1728059119242,0.41071,2435.2,2434.9,7.55854]
[1728059119629,3.2078,2435.4,2434.4,0.9764]
[1728059119939,4.2749,2435.4,2434.7,3.94]
[1728059120138,0.41073,2435.0,2434.7,4.35077]
[1728059120340,1.02672,2435.3,2434.7,3.94]
[1728059120643,4.2749,2435.4,2434.6,0.4108]
[1728059120644,0.41076,2434.9,2434.6,0.4108]
[1728059120836,1.0268,2435.2,2434.5,3.2078]
[1728059121035,1.02686,2435.0,2434.5,3.2078]
[1728059121530,0.41077,2434.8,2434.5,3.61861]
[1728059122131,1.44816,2434.9,2434.6,0.41079]
[1728059122438,1.0374,2434.9,2434.7,4.35078]
[1728059122634,1.44809,2435.3,2435.0,0.41073]
[1728059122834,3.2078,2435.7,2435.1,3.2078]
[1728059123036,3.2078,2435.7,2435.3,4.35068]
[1728059123335,0.41066,2435.5,2435.3,3.94]
[1728059123730,3.2078,2435.7,2435.3,3.94]
[1728059123932,0.41066,2435.5,2435.3,3.94]
[1728059124132,0.41067,2435.4,2435.3,3.94]
[1728059124435,3.2078,2435.7,2435.1,3.2078]
[1728059124436,1.02663,2435.5,2435.1,3.2078]
[1728059124738,0.41069,2435.3,2435.1,3.2078]
[1728059125135,1.02663,2435.5,2435.1,3.2078]
[1728059125136,0.41068,2435.4,2435.1,3.61852]
[1728059125333,0.41068,2435.4,2435.1,3.2078]
[1728059125537,0.41068,2435.3,2435.1,3.61851]
[1728059125745,0.41068,2435.4,2435.1,3.61851]
[1728059125935,1.0266,2435.6,2435.1,3.61851]
[1728059126234,1.02665,2435.5,2435.1,3.2078]
[1728059126435,1.0161,2435.4,2435.1,3.2078]
[1728059126735,0.4107,2435.2,2435.0,3.94]
[1728059126936,1.0161,2435.4,2434.8,3.94]
[1728059126937,0.41076,2434.9,2434.8,3.94]
[1728059127144,0.41075,2435.0,2434.8,4.35075]
[1728059127438,4.2239,2435.4,2434.9,0.41075]
[1728059127439,0.41073,2435.1,2434.9,0.41075]
[1728059127634,0.41073,2435.1,2434.9,3.61855]
[1728059127833,1.02673,2435.3,2434.8,3.94]
[1728059128133,0.41075,2434.9,2434.5,3.61861]
[1728059128339,0.4108,2434.6,2434.5,3.2078]
[1728059129544,4.1072,2434.6,2434.4,3.94]
[1728059129837,7.3158,2434.5,2433.8,3.94]
[1728059130044,0.41091,2434.0,2433.8,4.35093]
[1728059130232,0.41091,2434.0,2433.8,7.55873]
[1728059130432,0.41091,2434.0,2433.8,3.94]
[1728059130629,1.0647,2434.8,2433.8,8.0488]
[1728059130832,1.0647,2434.8,2434.5,3.94]
[1728059131037,3.2078,2435.1,2434.6,4.518]
[1728059131241,0.41071,2435.2,2435.0,0.41073]
[1728059131435,0.41072,2435.1,2434.8,3.61856]
[1728059131636,0.41072,2435.1,2434.8,0.41077]
[1728059131843,2.1022,2435.5,2434.8,0.41077]
[1728059131844,0.41069,2435.3,2435.0,0.41072]
[1728059132737,0.41071,2435.2,2434.9,0.41075]
[1728059133238,2.1022,2435.5,2434.8,3.2078]
[1728059133437,0.41069,2435.3,2435.0,0.41073]
[1728059133649,3.12885,2435.5,2434.8,3.2078]
[1728059133936,1.02669,2435.4,2434.8,3.2078]
[1728059134129,2.1022,2435.5,2434.8,3.2078]
[1728059134534,1.02667,2435.4,2434.8,3.2078]
[1728059134839,0.41072,2435.1,2434.8,3.61856]
[1728059135044,0.41072,2435.1,2434.8,3.2078]
[1728059135337,0.4107,2435.2,2434.9,0.41074]
[1728059135639,0.41073,2435.1,2434.8,3.61856]
[1728059135842,0.41073,2435.1,2434.9,0.41075]
[1728059136041,0.41071,2435.2,2434.8,3.2078]
[1728059136348,0.41072,2435.1,2434.8,3.2078]
[1728059136638,0.41074,2435.0,2434.8,3.61856]
[1728059136839,0.41075,2434.9,2434.7,4.35078]
[1728059137236,1.02676,2435.2,2434.7,4.35078]
[1728059137437,0.4108,2434.7,2434.4,4.35082]
[1728059137639,0.41081,2434.6,2434.4,3.94]
[1728059137837,0.41081,2434.6,2434.4,4.35083]
[1728059138040,1.0911,2434.8,2434.5,0.41081]
[1728059138340,0.4108,2434.6,2434.4,4.35082]
[1728059138547,0.4108,2434.7,2434.5,0.41081]
[1728059138841,2.11805,2434.8,2434.4,3.94]
[1728059139047,0.41082,2434.5,2434.4,3.94]
[1728059139342,1.0911,2434.8,2434.4,3.94]
[1728059139543,0.41081,2434.6,2434.4,4.35083]
[1728059140752,2.11803,2434.8,2434.4,4.35083]
[1728059140942,0.41082,2434.6,2434.4,4.35083]
[1728059141548,0.41081,2434.6,2434.4,4.35083]
[1728059141749,1.02697,2434.7,2434.4,3.94]
[1728059141941,0.41082,2434.5,2434.4,4.35083]
[1728059143038,0.41082,2434.5,2434.4,3.94]
[1728059143242,0.41082,2434.5,2434.4,4.35084]
[1728059144344,1.02697,2434.7,2434.4,4.35084]
[1728059144549,0.41082,2434.5,2434.4,4.35084]
[1728059145940,0.41082,2434.5,2434.4,3.94]
[1728059146251,0.41082,2434.5,2434.0,1.0772]
[1728059146252,0.41089,2434.1,2434.0,1.0772]
[1728059146441,0.41089,2434.1,2433.6,1.03244196]
[1728059146442,0.41094,2433.8,2433.7,0.41094]
[1728059146646,1.02718,2434.2,2433.3,4.08659708]
[1728059146843,2.1272,2434.3,2433.3,4.08659708]
[1728059146844,0.41099,2433.5,2433.4,0.411]
[1728059147045,0.41098,2433.6,2433.5,0.41098]
[1728059147351,4.1981,2434.1,2433.3,3.94]
[1728059147544,0.41096,2433.7,2433.5,0.41098]
[1728059147945,0.41097,2433.6,2433.4,0.411]
[1728059148145,0.41096,2433.7,2433.5,0.41098]
[1728059148345,1.02732,2433.9,2433.5,0.41098]
[1728059148546,0.41096,2433.7,2433.5,0.41098]
[1728059148849,0.41092,2433.9,2433.7,0.41094]
[1728059149051,5.22535,2434.1,2433.6,3.94]
[1728059149546,0.41094,2433.9,2433.6,4.35096]
[1728059149944,0.41094,2433.9,2433.6,3.94]
[1728059150142,5.22535,2434.1,2433.6,3.94]
[1728059150344,0.41093,2433.9,2433.7,0.41095]
[1728059150548,5.22535,2434.1,2433.7,0.41095]
[1728059150752,0.41093,2433.9,2433.7,0.41095]
[1728059151352,0.41086,2434.3,2434.1,0.41087]
[1728059151549,0.41089,2434.1,2434.0,3.94]
[1728059151948,4.108,2434.1,2433.8,3.2078]
[1728059152145,0.41092,2433.9,2433.8,3.2078]
[1728059152450,0.41087,2434.3,2434.1,0.41089]
[1728059152653,0.41087,2434.3,2433.8,4.23514]
[1728059152654,2.03977,2434.7,2434.2,3.94]
[1728059152840,1.02701,2434.6,2434.2,7.1478]
[1728059153145,0.41084,2434.4,2434.2,7.55866]
[1728059153344,0.41085,2434.3,2434.2,7.1478]
[1728059153540,0.41085,2434.3,2434.2,3.2078]
[1728059153739,0.41085,2434.3,2433.9,5.39011]
[1728059153740,0.4109,2434.0,2433.9,3.94]
[1728059154851,5.13606,2434.0,2433.6,3.94]
[1728059155062,0.41095,2433.8,2433.6,4.35097]
[1728059155556,0.41091,2434.0,2433.8,0.41092]
[1728059156245,0.997,2434.1,2433.9,3.94]
[1728059156447,1.40789,2434.1,2433.9,4.35091]
[1728059156650,0.4109,2434.0,2433.9,3.94]
[1728059157343,2.02424,2434.1,2433.6,4.35096]
[1728059157543,0.41094,2433.8,2433.6,0.41096]
[1728059157744,0.41094,2433.8,2433.5,3.2078]
[1728059157745,0.41094,2433.8,2433.7,3.21]
[1728059157953,0.997,2434.1,2433.7,3.21]
[1728059158151,0.41094,2433.8,2433.7,3.21]
[1728059159243,0.41096,2433.7,2433.5,3.2078]
[1728059159448,0.41096,2433.7,2433.6,3.21]
[1728059159449,0.41095,2433.7,2433.6,3.21]
[1728059159651,0.41095,2433.7,2433.6,3.62097]
[1728059160050,0.41095,2433.7,2433.6,3.21]
[1728059160554,0.997,2434.1,2433.6,3.21]
[1728059160555,1.02724,2434.1,2433.6,3.21]
[1728059160857,0.4109,2434.0,2433.9,3.21]
[1728059161251,4.5197,2434.0,2433.9,3.21]
[1728059161454,0.4109,2434.0,2433.9,3.21]
[1728059162461,4.5197,2434.0,2433.9,3.21]
[1728059162759,0.4109,2434.0,2433.9,3.21]
[1728059163855,0.41089,2434.1,2433.9,3.6209]
[1728059164659,1.0171,2434.2,2433.9,3.21]
[1728059164863,1.0171,2434.2,2434.1,3.62089]
[1728059165059,1.42797,2434.2,2434.1,3.21]
[1728059165455,0.41086,2434.3,2434.1,3.62087]
[1728059165655,0.41086,2434.3,2434.2,3.21]
[1728059168763,10.51886,2434.3,2434.2,3.21]
[1728059168971,0.41089,2434.1,2434.0,3.21]
[1728059169361,4.51889,2434.1,2433.8,3.21]
[1728059169563,0.41092,2433.9,2433.8,3.21]
[1728059169865,0.41095,2433.7,2433.6,3.21]
[1728059170777,0.41095,2433.7,2433.6,3.62097]
[1728059171158,0.41095,2433.7,2433.6,3.21]
[1728059171762,0.41095,2433.7,2433.6,3.62097]
[1728059172368,0.41095,2433.7,2433.6,3.21]
[1728059172765,1.02735,2433.9,2433.6,3.21]
[1728059172766,0.41095,2433.8,2433.6,3.21]
[1728059173162,0.41095,2433.7,2433.6,3.62096]
[1728059173362,0.41095,2433.7,2433.6,3.21]
[1728059173558,0.41095,2433.8,2433.6,3.21]
[1728059173772,0.41095,2433.8,2433.6,3.62096]
[1728059173967,0.41094,2433.8,2433.6,3.62096]
[1728059174170,0.41094,2433.8,2433.6,3.21]
[1728059174473,0.41094,2433.8,2432.7,3.2078]
[1728059174474,11.73452,2433.7,2432.7,3.2078]
[1728059174666,0.41114,2432.6,2432.3,7.5033]
[1728059174861,3.2078,2433.2,2432.3,7.5033]
[1728059174862,0.41111,2432.8,2432.3,1.0855]
[1728059175063,0.41111,2432.8,2432.4,0.41116]
[1728059175064,0.41114,2432.6,2432.4,0.41116]
[1728059175265,0.41114,2432.6,2432.3,1.0855]
[1728059175477,1.02777,2432.8,2432.3,1.0855]
[1728059175773,0.41114,2432.6,2432.3,1.49668]
[1728059176073,0.41114,2432.6,2432.4,0.41117]
[1728059176263,0.41114,2432.6,2432.3,1.0855]
[1728059176470,0.41114,2432.6,2432.4,0.41117]
[1728059176767,7.44555,2432.9,2432.3,1.0855]
[1728059176971,1.02777,2432.8,2432.3,1.0855]
[1728059177271,0.41115,2432.6,2432.3,1.49669]
[1728059177476,0.41115,2432.6,2432.3,1.0855]
[1728059177664,2.08927,2432.8,2432.4,0.41117]
[1728059177977,3.62117,2432.5,2432.2,0.4112]
[1728059178278,3.2078,2432.6,2432.1,0.41121]
[1728059178279,0.41117,2432.4,2432.1,0.41121]
[1728059178473,3.2078,2432.6,2432.0,3.2078]
[1728059178775,0.41118,2432.4,2432.1,0.41121]
[1728059179468,0.41118,2432.4,2432.0,3.2078]
[1728059179469,0.41122,2432.1,2432.0,3.2078]
[1728059179669,0.41122,2432.1,2431.5,0.8927]
[1728059179670,0.41129,2431.8,2431.5,3.2078]
[1728059179875,3.21,2432.1,2431.2,3.2078]
[1728059180073,3.6213,2431.7,2431.2,3.2078]
[1728059180373,2.08831,2432.0,2431.6,0.4113]
[1728059180374,0.41129,2431.8,2431.6,0.4113]
[1728059180568,3.2078,2431.9,2431.3,0.41136]
[1728059180569,0.41131,2431.6,2431.3,0.41136]
[1728059180765,0.41131,2431.6,2431.2,3.2078]
[1728059180766,0.41136,2431.3,2431.2,3.2078]
[1728059180967,0.41136,2431.3,2431.0,0.4114]
[1728059181168,1.02834,2431.5,2430.8,7.57038208]
[1728059181373,3.21,2431.7,2431.1,0.41138]
[1728059181572,0.41136,2431.3,2430.9,0.41143]
[1728059181773,1.02835,2431.5,2430.8,4.2161]
[1728059181970,1.02838,2431.4,2430.9,0.41142]
[1728059182175,0.41134,2431.4,2431.0,0.41141]
[1728059182374,0.41138,2431.2,2431.0,0.4114]
[1728059182677,0.41139,2431.2,2431.0,0.41141]
[1728059182879,1.02836,2431.5,2431.0,0.41141]
[1728059183273,1.02836,2431.5,2430.4,1.02877]
[1728059183274,0.41144,2430.9,2430.7,0.41145]
[1728059183473,8.0628,2431.4,2430.7,3.2078]
[1728059183474,1.02841,2431.3,2430.7,3.2078]
[1728059183669,1.0802,2431.3,2430.7,3.2078]
[1728059183875,1.0802,2431.3,2431.1,0.41138]
[1728059184168,3.61913,2431.5,2431.2,0.41138]
[1728059184368,3.61913,2431.5,2431.2,0.41136]
[1728059184874,3.2078,2431.5,2431.2,0.41136]
[1728059185075,2.54428,2431.8,2431.4,0.41134]
[1728059185271,3.61907,2431.9,2431.3,7.1578]
[1728059185472,3.2078,2432.2,2431.3,7.1578]
[1728059185680,0.41123,2432.1,2431.9,0.41126]
[1728059185876,3.2078,2432.2,2432.1,0.41122]
[1728059186079,5.75196,2432.5,2432.2,0.41119]
[1728059186279,5.3408,2432.5,2431.9,3.2078]
[1728059186482,3.2078,2432.5,2432.3,0.41118]
[1728059186780,3.2078,2432.5,2432.2,0.41119]
[1728059186976,3.2078,2432.5,2432.0,1.071]
[1728059187177,3.2078,2432.5,2432.3,0.41118]
[1728059187371,3.2078,2432.5,2432.2,0.4112]
[1728059187576,3.2078,2432.5,2432.3,0.41118]
[1728059187985,3.61896,2432.5,2432.2,0.4112]
[1728059188179,3.2078,2432.5,2432.2,0.4112]
[1728059188377,3.2078,2432.5,2432.3,0.41118]
[1728059188683,3.2078,2432.5,2432.0,1.071]
[1728059188977,3.2078,2432.5,2432.1,0.41122]
[1728059189177,3.2078,2432.5,2432.0,1.071]
[1728059189383,3.2078,2432.5,2431.9,4.3196]
[1728059189384,4.23572,2432.5,2431.9,4.3196]
[1728059189582,0.4112,2432.3,2432.0,0.41124]
[1728059189777,0.41117,2432.4,2432.0,0.41124]
[1728059189983,0.41119,2432.4,2432.1,0.41122]
[1728059190286,0.41119,2432.3,2431.9,1.1118]
[1728059190491,3.2078,2432.5,2431.9,1.1118]
[1728059190678,3.2078,2432.5,2432.3,0.41118]
[1728059191182,0.41113,2432.7,2432.5,0.41115]
[1728059191379,0.41114,2432.6,2432.4,0.41116]
[1728059191887,1.1139,2433.0,2432.5,4.1112]
[1728059192093,0.41103,2433.3,2432.7,1.02781]
[1728059192384,0.41101,2433.4,2433.2,0.41104]
[1728059192585,1.0484,2433.5,2432.8,3.2078]
[1728059192892,1.0484,2433.5,2432.8,4.2517]
[1728059193089,1.0484,2433.5,2433.3,0.41102]
[1728059193307,1.45939,2433.5,2433.2,0.41103]
[1728059194286,1.0484,2433.5,2432.8,4.2517]
[1728059194483,1.0484,2433.5,2432.9,0.41108]
[1728059194484,0.41105,2433.2,2432.9,0.41108]
[1728059194687,1.02756,2433.3,2432.6,3.2078]
[1728059194987,0.41107,2433.1,2432.8,0.4111]
[1728059195386,0.41105,2433.2,2432.9,0.41108]
[1728059195783,0.41105,2433.2,2432.8,0.4111]
[1728059195784,0.41104,2433.2,2432.8,0.4111]
[1728059195983,1.0484,2433.5,2432.6,3.2078]
[1728059196183,3.61883,2433.3,2433.0,0.41106]
[1728059196379,3.2078,2433.3,2433.0,0.41106]
[1728059196579,0.41104,2433.2,2433.0,0.41106]
[1728059196779,3.2078,2433.3,2432.6,3.2078]
[1728059196987,0.41107,2433.1,2432.8,0.4111]
[1728059197286,0.41109,2432.9,2432.7,0.41111]
[1728059197786,1.02766,2433.1,2432.6,3.2078]
[1728059197990,0.41112,2432.8,2432.6,3.2078]
[1728059198290,0.41112,2432.7,2432.6,3.2078]
[1728059198994,1.02774,2432.9,2432.6,3.2078]
[1728059198995,0.41111,2432.8,2432.6,3.61893]
[1728059199183,1.1106,2433.1,2432.6,3.2078]
[1728059199380,1.0277,2433.0,2432.6,3.2078]
[1728059199578,0.41112,2432.8,2432.6,3.2078]
[1728059199985,0.41112,2432.7,2432.6,3.2078]
[1728059200579,0.41116,2432.5,2432.3,3.61898]
[1728059200999,0.41117,2432.5,2432.3,3.2078]
[1728059201191,0.41117,2432.4,2432.3,3.2078]
[1728059201496,0.41116,2432.5,2432.3,3.61899]
[1728059201789,0.41117,2432.4,2432.3,3.2078]
[1728059202185,0.41117,2432.5,2432.3,3.2078]
[1728059202390,1.0871,2432.6,2432.3,3.2078]
[1728059202587,1.46062,2432.8,2432.6,0.41114]
[1728059202783,1.46062,2432.8,2432.5,0.41115]
[1728059202986,1.0495,2432.8,2432.7,0.41112]
[1728059203180,3.2078,2433.0,2432.8,0.4111]
[1728059203181,3.61888,2433.0,2432.8,0.4111]
[1728059203587,3.61888,2433.0,2432.4,1.02794]
[1728059203890,1.0871,2433.1,2432.6,3.2078]
[1728059204089,0.41105,2433.2,2433.0,0.41107]
[1728059204396,3.2078,2433.6,2433.0,1.02769]
[1728059204584,4.65758,2433.6,2433.3,0.41101]
[1728059204784,1.0388,2433.6,2433.1,1.02764]
[1728059205084,0.41106,2433.1,2432.9,3.61888]
[1728059205688,0.41105,2433.2,2432.9,3.2078]
[1728059205887,0.41105,2433.2,2433.0,0.41107]
[1728059206094,4.23534,2433.4,2432.9,3.2078]
[1728059206095,1.0388,2433.6,2432.9,4.23552]
[1728059206388,1.0388,2433.6,2433.2,3.2078]
[1728059206583,0.41102,2433.3,2433.2,0.41103]
[1728059206891,0.41109,2433.0,2432.7,1.1098]
[1728059207081,0.41109,2433.0,2432.9,0.41109]
[1728059207288,1.02762,2433.2,2432.7,1.1098]
[1728059207593,0.41109,2432.9,2432.8,0.41109]
[1728059207785,1.02762,2433.2,2432.7,1.1098]
[1728059207987,0.41109,2433.0,2432.9,0.41108]
[1728059208399,0.4111,2432.9,2432.8,0.4111]
[1728059208692,0.41111,2432.8,2432.7,0.41111]
[1728059209089,2.0645,2433.0,2432.6,3.2078]
[1728059209287,0.41111,2432.8,2432.7,0.41112]
[1728059209489,3.1074,2433.0,2432.6,3.2078]
[1728059209688,0.41112,2432.7,2432.6,3.61892]
[1728059210086,0.41112,2432.8,2432.7,0.41112]
[1728059210395,0.41112,2432.7,2432.6,3.61894]
[1728059210589,0.41112,2432.7,2432.6,3.61892]
[1728059210887,1.02774,2432.9,2432.6,3.2078]
[1728059211087,0.41112,2432.8,2432.7,0.41112]
[1728059211990,0.41112,2432.7,2432.6,3.61893]
[1728059212597,1.02774,2432.9,2432.6,3.2078]
[1728059212793,0.41112,2432.8,2432.7,0.41111]
[1728059213790,1.02774,2432.9,2432.6,3.2078]
[1728059213987,0.41112,2432.8,2432.7,0.41111]
[1728059214586,2.0797,2433.0,2432.6,3.2078]
[1728059214793,0.41111,2432.9,2432.8,0.4111]
[1728059215195,0.41112,2432.8,2432.7,0.41111]
[1728059215495,0.4111,2432.9,2432.8,0.41109]
[1728059215698,0.41112,2432.8,2432.7,0.41111]
[1728059215895,0.4111,2432.9,2432.8,0.41109]
[1728059216396,2.0797,2433.0,2432.6,3.2078]
[1728059216597,0.41111,2432.9,2432.8,0.4111]
[1728059217093,2.0797,2433.0,2432.9,0.41109]
[1728059217293,2.49077,2433.0,2432.9,0.41109]
[1728059217493,6.60117,2433.0,2432.9,0.41109]
[1728059218404,0.41112,2432.8,2432.7,0.41111]
[1728059218593,3.10739,2433.0,2432.6,3.2078]
[1728059218997,0.41112,2432.8,2432.7,0.41111]
[1728059219297,3.10739,2433.0,2432.6,3.2078]
[1728059219596,0.41112,2432.8,2432.7,0.4111]